Cogmind - Beta 17 @@@ ROGUE MODE // 2026.06.29 @ 14:43:47 Player: H3-MLN Result: Destroyed by Triborg with Siege Cannon Performance ------------- Evolutions (0) 0 Regions Visited (4) 800 Robots Destroyed (49) 245 Value Destroyed (1212) 1212 Prototype IDs (39) 780 Alien Tech Used (0) 0 Bonus (9583) 9583 TOTAL SCORE: 12620 Bonus ------- Follower Combat Kills 894 Prayed to X0-1V1 5000 Major X0-1V1 Interference 3500 Registered with UFD 300 Friendly Fire -111 Cogmind --------- Core Integrity 0/375 Matter 296/300 Energy 97/100 System Corruption 10% Temperature Cool (8) Movement Treading (140) Location -9/Scraptown Parts ------- > --- POWER (1) -------- (None) > --- PROPULSION (2) --- Overtuned Treads > --- UTILITY (3) ------ Self-contained Transmogrifier > --- WEAPON (2) ------- Companion Sword > --- INVENTORY (5) ---- Advanced Targeting Computer Datajack Peak State ------------ > --- POWER ------------ Heavy Ion Engine Subdweller Power Source > --- PROPULSION ------- Improved Treads Spiked Treads Spiked Treads Medium Treads > --- UTILITY ---------- Large Storage Unit Tower Shield Self-contained Transmogrifier X0-1V1's Piety Tracker > --- WEAPON ----------- Assault Rifle Assault Rifle Heavy Flail Companion Sword > --- INVENTORY -------- Improved Treads Improved Treads High-capacity Matter Pod Structural Scanner Seismic Detector 0b10 Decoder Chip [Generic] Advanced Targeting Computer Hardened Light Armor Plating Hardened Light Armor Plating Subdweller Laser Datajack CPS Tube Vortex Trap Botcube [Rating: 72] Favorites ----------- Power Subdweller Power Source Engine Subdweller Power Source Propulsion Spiked Treads Treads Spiked Treads Leg Improved Aluminum Leg Wheel Compact Wheel Utility Large Storage Unit Device X0-1V1's Piety Tracker Storage Large Storage Unit Protection Tower Shield Weapon Assault Rifle Energy Gun Autobeam Ballistic Gun Assault Rifle Impact Weapon Mace Slashing Weapon Companion Sword Special Melee Weapon Datajack Build | -11 -10 -10 -9 -9 ------- Run | Yrd Mat Sub Rec Scr Slots Evolved . | . . . . . Power . | . . . . . Propulsion . | . . . . . Utility . | . . . . . Weapon . | . . . . . Parts Attached 54 | 8 15 18 2 11 Power 6 | 1 2 2 1 . Engine 6 | 1 2 2 1 . Core . | . . . . . Reactor . | . . . . . Propulsion 13 | 3 5 3 . 2 Treads 10 | 2 3 3 . 2 Leg 2 | . 2 . . . Wheel 1 | 1 . . . . Hover . | . . . . . Flight . | . . . . . Utility 18 | 2 4 8 . 4 Device 9 | 1 1 6 . 1 Storage 2 | 1 1 . . . Processor . | . . . . . Hackware . | . . . . . Protection 7 | . 2 2 . 3 Artifact . | . . . . . Weapon 17 | 2 4 5 1 5 Energy Gun 4 | 1 1 2 . . Energy Cannon . | . . . . . Ballistic Gun 9 | 1 3 3 . 2 Ballistic Cannon . | . . . . . Launcher . | . . . . . Special Weapon . | . . . . . Impact Weapon 1 | . . . 1 . Slashing Weapon 1 | . . . . 1 Piercing Weapon . | . . . . . Special Melee Weapon 2 | . . . . 2 Unidentified Prototypes 3 | . 1 . . 2 Corrupted Parts 3 | . . . . 3 System Corruption 9 | . . . . 9 Parts Lost 13 | . 2 . . 11 Power 2 | . 1 . . 1 Propulsion 5 | . 1 . . 4 Utility 3 | . . . . 3 Weapon 3 | . . . . 3 Highest Loss Streak 9 | . 2 . . 9 To Critical Strikes . | . . . . . Average Backups 12 | 3 11 13 15 13 Power . | . . . . . Propulsion 2 | 1 3 2 2 1 Utility 4 | . 3 5 4 5 Weapon 3 | 1 2 4 6 3 Tool/Special . | . . . . . Unused Backups 10 | . 2 . . 8 Power . | . . . . . Propulsion 3 | . 2 . . 1 Utility 3 | . . . . 3 Weapon 3 | . . . . 3 Tool/Special 1 | . . . . 1 Average Slot Usage (%) 95 | . 99 95 92 92 Engine 13 | . 14 12 13 12 Treads 23 | . 15 27 25 25 Leg 3 | . 12 . . . Device 9 | . . 10 12 12 Storage 9 | . 14 12 6 6 Protection 7 | . 13 3 6 6 Energy Gun 5 | . . 13 3 4 Ballistic Gun 16 | . 27 13 18 12 Impact Weapon 3 | . . . 4 6 Peak Build Rating 72 | 7 25 55 56 72 Average Rating 37 | 4 10 29 54 56 On Entrance 28 | . 7 25 55 55 Avg Prop Armor Cover (%) 3 | 3 . . . . Naked Turns . | . . . . . Heaviest Build 83 | 14 38 82 83 83 Greatest Support 91 | 40 43 86 86 91 Greatest Overweight (x) 1 | . 1 1 1 1 Average Overweight (x) . | . . . . . Largest Inventory Capacity 15 | 8 15 15 15 15 Average Capacity 13 | 6 11 14 15 14 Most Carried 15 | 6 15 15 15 15 Average Carried 13 | 3 11 13 14 13 Final Capacity 15 | 8 15 15 15 5 Final Carried 15 | 5 14 15 15 2 Transmogrified Parts 7 | . . . . 7 Integrity Recovered 158 | . . . . 158 Class Distribution -------------------- 91% | Mutant 4% | Gunner 3% | Scavenger-Gunner Dominant Class ---------------- Mutant | -10/Materials Mutant | -10/Subcaves Mutant | -9/Recycling Mutant | -9/Scraptown Resources | -11 -10 -10 -9 -9 ----------- Run | Yrd Mat Sub Rec Scr Matter Collected 2270 | 279 619 559 514 299 Remotely . | . . . . . Salvage Created 1822 | 127 706 294 387 308 Parts 104 | 8 43 22 11 20 Haulers Intercepted 2 | . 2 . . . Recyclers Shooed 2 | . 1 . 1 . Parts Field Recycled . | . . . . . Retrieved Matter . | . . . . . Parts Self-Destructed 10 | . . 10 . . Prevented . | . . . . . Parts Restored . | . . . . . Kills | -11 -10 -10 -9 -9 ------- Run | Yrd Mat Sub Rec Scr Combat Hostiles Destroyed 34 | . 16 7 6 5 Melee 2 | . . . . 2 Guns 30 | . 16 7 6 1 AOE 2 | . . . . 2 Classes Destroyed 15 | 2 7 2 1 3 Worker 2 | . 2 . . . Builder 3 | . 3 . . . Tunneler 2 | 2 . . . . Hauler 2 | . 2 . . . Recycler 4 | 1 1 . 2 . Turret 1 | . . 1 . . Watcher 1 | . 1 . . . Swarmer 10 | . 6 4 . . Grunt 10 | . 7 . 3 . Brawler 1 | . . . 1 . Sentry 3 | . . 1 2 . Subdweller 5 | . 3 2 . . Scrapper 2 | . . . . 2 Elite 2 | . . . . 2 Butcher 1 | . . . . 1 Best Kill Streak 5 | 2 5 4 3 2 Combat Bots Only 5 | . 5 4 3 2 Max Kills in Single Turn 2 | 1 1 2 1 2 Gunslinging 1 | . . 1 . . Exploded 2 | . . . . 2 Melee 1 | . . . . 1 Uniques/NPCs Destroyed . | . . . . . Combat | -11 -10 -10 -9 -9 -------- Run | Yrd Mat Sub Rec Scr Hostile Shots Fired 285 | . 87 65 39 94 Missed 80 | . 22 18 12 28 Hits 205 | . 65 47 27 66 Melee 5 | . . . 4 1 Projectile 200 | . 65 47 23 65 Critical Strikes 7 | . 4 . . 3 Damage Taken 3823 | . 1145 458 401 1819 Core 502 | . 163 24 35 280 Absorbed by Shields . | . . . . . Ignored by Resistances 8 | . . 8 . . Core Remaining (%) 100 | 100 . . . . Volleys Fired 153 | 3 73 48 24 5 Largest 4 | 2 2 4 3 2 Hottest 130 | 60 46 130 70 58 Shots Fired 303 | 6 148 83 60 6 Gun 303 | 6 148 83 60 6 Cannon . | . . . . . Launcher . | . . . . . Special . | . . . . . Kinetic 234 | 3 148 35 42 6 Thermal 69 | 3 . 48 18 . Explosive . | . . . . . Electromagnetic . | . . . . . Robot Hit Streak 17 | 5 17 15 6 7 Robot Miss Streak 5 | . 5 2 5 . Penetration Max . | . . . . . Secondary Targets 5 | . 2 2 1 . Max Gunslinging Chain 1 | . 1 1 1 . Autonomous 18 | . . . 18 . Shots Hit Robots 220 | 5 105 55 44 11 Core Hits 84 | 3 43 16 15 7 Critical Kills 1 | . . . . 1 Critical Parts Destroyed 1 | . . . 1 . Critical Strikes 2 | . . . 1 1 Smash 2 | . . . 1 1 Melee Attacks 13 | . . . 1 12 Impact 2 | . . . 1 1 Slashing 10 | . . . . 10 Piercing . | . . . . . Sneak Attacks 2 | . . . 1 1 Combat Hostiles . | . . . . . Follow-up Attacks 1 | . . . . 1 Damage Inflicted 3799 | 57 1517 1047 698 480 Guns 3368 | 57 1517 1047 651 96 Cannons . | . . . . . Explosions 242 | . . . . 242 Melee 189 | . . . 47 142 Ramming . | . . . . . Kinetic 2572 | 26 1517 502 431 96 Thermal 796 | 31 . 545 220 . Explosive . | . . . . . Electromagnetic . | . . . . . Impact 95 | . . . 47 48 Slashing 94 | . . . . 94 Piercing . | . . . . . Entropic 242 | . . . . 242 Highest Corruption 10 | . 1 1 2 10 Average Corruption 1 | . 1 1 1 9 Corruption Purged . | . . . . . Corruption Blocked . | . . . . . Effects 24 | . 9 10 3 2 Message Errors 6 | . 2 2 1 1 Matter Fused 4 | . 2 2 . . Heat Flow Errors 3 | . 1 2 . . Energy Discharges 4 | . 2 1 . 1 Data Loss (minor) 3 | . . 2 1 . Data Loss (major) 1 | . . . 1 . Misfires 2 | . 2 . . . Weapon Failures 1 | . . 1 . . Overload Shots . | . . . . . Overflow Damage 47 | . . . 47 . Projectiles . | . . . . . Explosions . | . . . . . Melee 47 | . . . 47 . Knockbacks 1 | . . . 1 . Impact 1 | . . . 1 . Kinetic . | . . . . . Secondary . | . . . . . Self-Inflicted Damage 170 | . 14 . . 156 Shots 2 | . 1 . . 1 Rammed . | . . . . . Targets Rammed . | . . . . . Kicked . | . . . . . Crushed . | . . . . . Highest Temperature 417 | . 417 191 394 8 Average Temperature 125 | . 122 96 151 4 Received Heat Transfer 1199 | . 670 48 147 334 Effects 9 | . 8 . 1 . Shutdowns 3 | . 3 . . . Interference 2 | . 2 . . . Matter Decay 2 | . 2 . . . Short Circuit 1 | . . . 1 . Damage (minor) 1 | . 1 . . . Siege Activations . | . . . . . Martial Activations . | . . . . . Shielding Activations . | . . . . . Robots Disrupted . | . . . . . Combat Hostiles . | . . . . . Robots Corrupted 1 | . . . 1 . Combat Hostiles . | . . . . . Parts Fried 1 | . . . 1 . Impact Corruptions 2 | . . . 2 . Robots Melted . | . . . . . Combat Hostiles . | . . . . . Parts Melted 2 | . . . 1 1 Heat Transferred 1500 | 75 . 675 750 . Parts Sabotaged . | . . . . . Parts Stolen . | . . . . . Parts Stripped . | . . . . . Power Chain Reactions . | . . . . . Alert | -11 -10 -10 -9 -9 ------- Run | Yrd Mat Sub Rec Scr Maximum Alert Level 1 | . 1 . 1 . Low Security (%) 75 | 100 96 . 15 . Level 1 24 | . 3 . 84 . Level 2 . | . . . . . Level 3 . | . . . . . Level 4 . | . . . . . Level 5 . | . . . . . High Security . | . . . . . Max Security . | . . . . . Peak Influence 295 | 5 214 . 295 . Initial 5 | . . . 5 . Average 112 | 1 77 . 229 . Influence Increases 1033 | 15 422 150 446 . Destroy 0b10 Robot/C 540 | . 260 120 160 . Destroy 0b10 Robot/NC 70 | 15 45 . 10 . Destroy Leader 46 | . 46 . . . Allied During Kill 4 | . . . 4 . Successful Hack 14 | . 7 . 7 . Select Force Hacks 60 | . . . 60 . Disable Machine 15 | . 15 . . . Destroy Structure 5 | . 4 . 1 . Lose Combat Pursuer 75 | . 45 30 . . Miscellaneous 204 | . . . 204 . Influence Decreases 1033 | 15 422 138 229 229 Entered New Map 236 | . . . 7 229 Time Decay 794 | 15 419 138 222 . Lost Part 3 | . 3 . . . Squads Dispatched 2 | . . . 2 . Investigation 2 | . . . 2 . Extermination . | . . . . . Reinforcement . | . . . . . Assault . | . . . . . Garrison . | . . . . . Intercept . | . . . . . Searches Triggered . | . . . . . Construction Impeded . | . . . . . Haulers Reinforced . | . . . . . Active Scanning Responses . | . . . . . Cargo Convoy Interrupts . | . . . . . Stealth | -11 -10 -10 -9 -9 --------- Run | Yrd Mat Sub Rec Scr Distress Signals 2 | . 2 . . . Communications Jammed . | . . . . . Distress Signals . | . . . . . Times Spotted 94 | . 27 8 7 52 Peak Tracking Total 13 | . 6 5 4 13 Tactical Retreats 3 | . 2 1 . . Traps | -11 -10 -10 -9 -9 ------- Run | Yrd Mat Sub Rec Scr Traps Triggered 4 | . 3 . . 1 Indirectly . | . . . . . Trap Hack Attempts . | . . . . . Triggered . | . . . . . Disarmed . | . . . . . Reprogrammed . | . . . . . Reused . | . . . . . Traps Extracted . | . . . . . Installed 1 | . . . . 1 Triggered . | . . . . . Most Traps Carried 1 | . . . . 1 Machines | -11 -10 -10 -9 -9 ---------- Run | Yrd Mat Sub Rec Scr Machines Disabled 9 | . 1 2 . 6 Max in Single Turn 1 | . 1 1 . . Machines Repaired . | . . . . . Machines Dismantled . | . . . . . Machines Sabotaged . | . . . . . Overloaded Fab Kills . | . . . . . Hacking | -11 -10 -10 -9 -9 --------- Run | Yrd Mat Sub Rec Scr Machines Accessed 11 | . 1 1 5 4 Terminals 3 | . 1 . 2 . Fabricators . | . . . . . Repair Stations . | . . . . . Recycling Units 3 | . . . 3 . Scanalyzers . | . . . . . Garrison Access . | . . . . . Total Hacks 31 | . 7 1 12 11 Successful 23 | . 3 1 8 11 Failed 8 | . 4 . 4 . Catastrophic 2 | . 2 . . . Database Lockouts . | . . . . . Manual 8 | . 5 . 3 . Terminals 10 | . 7 . 3 . Fabricators . | . . . . . Repair Stations . | . . . . . Recycling Units 9 | . . . 9 . Scanalyzers . | . . . . . Garrison Access . | . . . . . Terminal Hacks 18 | . 3 1 3 11 Record 2 | . . . . 2 Part Schematic 2 | . 1 . 1 . Robot Analysis 8 | . 1 . . 7 Open Door 1 | . . . . 1 Locate Traps 1 | . 1 . . . Recall Investigation 1 | . . . 1 . Zone Layout 1 | . . . 1 . Proto ID Catalog 2 | . . 1 . 1 Fabricator Hacks . | . . . . . Repair Station Hacks . | . . . . . Recycling Unit Hacks 3 | . . . 3 . Report Inventory 1 | . . . 1 . Retrieve Components 2 | . . . 2 . Scanalyzer . | . . . . . Garrison Access Hacks . | . . . . . Unauthorized Hacks 2 | . . . 2 . Terminals . | . . . . . Fabricators . | . . . . . Repair Stations . | . . . . . Recycling Units 2 | . . . 2 . Tunnel 2 | . . . 2 . Scanalyzers . | . . . . . Garrison Access . | . . . . . Data Cores Recovered . | . . . . . Used . | . . . . . Hacking Detections 3 | . 1 . 2 . Full Trace Events 1 | . . . 1 . Feedback Events . | . . . . . Feedback Blocked . | . . . . . Robot Schematics Acquired . | . . . . . Robots Built . | . . . . . Authchips . | . . . . . Time . | . . . . . Total Robot Build Rating . | . . . . . Part Schematics Acquired 2 | . 1 . 1 . Parts Built . | . . . . . Authchips . | . . . . . Time . | . . . . . Total Part Build Rating . | . . . . . Part Studies Acquired . | . . . . . Parts Repaired . | . . . . . Time . | . . . . . Parts Recycled . | . . . . . Recycled Matter . | . . . . . Retrieved Matter . | . . . . . Retrieved Components 6 | . . . 6 . Parts Scanalyzed . | . . . . . Part Schematics Acquired . | . . . . . Parts Damaged . | . . . . . Bothacking | -11 -10 -10 -9 -9 ------------ Run | Yrd Mat Sub Rec Scr Used RIF Installer . | . . . . . Robots Hacked 1 | . . . . 1 Non-combat . | . . . . . Combat 1 | . . . . 1 Robot Hacks Applied 1 | . . . . 1 parse_system 1 | . . . . 1 Relay Couplers Released . | . . . . . Fabnet Peak Effective % . | . . . . . Robots Rewired . | . . . . . Allies Hacked . | . . . . . Hacks Repelled . | . . . . . Allies | -11 -10 -10 -9 -9 -------- Run | Yrd Mat Sub Rec Scr Total Allies 3 | . . . 1 2 Largest Group 1 | . . . 1 1 Highest-Rated Group 446 | . . . 57 446 Highest-Rated Ally 446 | . . . 57 446 Total Orders . | . . . . . Ally Attacks 64 | . . . 6 58 Total Damage 4426 | . . . 120 4306 Kills 31 | . . . 2 29 Allies Corrupted . | . . . . . Allies Melted . | . . . . . X0-1V1 Amusement Gains 111 | . 9 . . 102 Good Acts 21 | . . 2 18 1 Bad Acts 29 | . . 4 24 1 Intel | -11 -10 -10 -9 -9 ------- Run | Yrd Mat Sub Rec Scr Active Infowar (turns) 1796 | 1 67 45 423 1260 Structural 1695 | . . 12 423 1260 Seismic 101 | 1 67 33 . . Robot Analysis Total 8 | . 1 . . 7 Derelict Logs Recovered 5 | . . 1 . 4 Drone Launches . | . . . . . Drone Recoveries . | . . . . . Exploration | -11 -10 -10 -9 -9 ------------- Run | Yrd Mat Sub Rec Scr Turns Passed 4962 | 121 1176 1225 468 1972 Spaces Moved 2583 | 65 474 615 242 1187 Core 9 | 9 . . . . Treads 2366 | 55 267 615 242 1187 Legs 207 | . 207 . . . Wheels 1 | 1 . . . . Hover . | . . . . . Flight . | . . . . . Fastest Speed 50 | 50 160 160 160 140 Average Speed 162 | 143 173 162 163 159 Slowest Speed 250 | 160 240 250 246 162 Overloaded Moves . | . . . . . Propulsion Burnouts . | . . . . . Robots Hopped . | . . . . . Potential Cave-ins 2 | . . . . 2 Cave-ins Triggered . | . . . . . Exploration Rate (%) 51 | 5 80 40 53 80 Regions Visited 4 Branch Regions 3 Pre-discovered Areas 3 | . . . 2 1 Known Exits Taken 1 | . . . 1 . Unknown Exits Taken 3 | 1 1 1 . . Scrap Searched 7 | . . 2 . 5 Spaces Dug 5 | . . 1 . 4 Terrain Destroyed 12 | . . 1 1 10 Melee 4 | . . . . 4 Projectile 2 | . . 1 1 . AOE 6 | . . . . 6 Terrain Rammed . | . . . . . Walls Destroyed . | . . . . . Machines Disabled . | . . . . . Actions | -11 -10 -10 -9 -9 --------- Run | Yrd Mat Sub Rec Scr Total 3042 | 83 686 755 275 1243 Wait 134 | 2 90 42 . . Move 2579 | 64 473 614 241 1187 Hop . | . . . . . Pick Up 48 | 6 17 15 2 8 Fast Attach 28 | 6 4 9 2 7 Attach 12 | 1 2 3 1 5 Detach 4 | . 1 2 . 1 Swap 32 | 1 11 14 2 4 Drop 39 | . 15 8 2 14 Fire 153 | 3 73 48 24 5 Melee 12 | . . . 1 11 Ram . | . . . . . Kick . | . . . . . Crush . | . . . . . Escape Stasis . | . . . . . Rewire . | . . . . . Trap 1 | . . . . 1 Miscellaneous . | . . . . . Route ------- -11/Scrapyard -10/Materials (discovered 4 exits: [*Mat x2] / [*Min] / *Sub) -10/Subcaves -9/Recycling -9/Scraptown (discovered 1 exit: [*Fac]) History --------- Turn | Location | Event 4 | -11/Scrapyard | Discovered new exit (range 15) 122 | -11/Scrapyard | Entered Materials 305 | -10/Materials | Build established: Mutant 651 | -10/Materials | Discovered new exit (range 7) 772 | -10/Materials | Discovered new exit (range 16) 959 | -10/Materials | Discovered new exit (range 9) 1221 | -10/Materials | Discovered new exit (range 7) 1222 | -10/Materials | Derelicts attacked the area 1236 | -10/Materials | Core integrity fell below 50% 1284 | -10/Materials | Made a sacrifice at D.C.S.S. Altar Unit 1285 | -10/Materials | Core integrity fell below 20% 1298 | -10/Materials | Entered Subcaves 1299 | -10/Subcaves | Approached by a straggling Scientist 1306 | -10/Subcaves | Learned 2 Materials zone layouts 2186 | -10/Subcaves | Visited 4L-MR0's lab 2220 | -10/Subcaves | Found Tower Shield 2222 | -10/Subcaves | Attached Tower Shield, gained temporary slots: Power, Propulsion x2, Utility x2, Weapon x2 2250 | -10/Subcaves | Found Prototype Device 2491 | -10/Subcaves | Discovered new exit (range 12) 2523 | -10/Subcaves | Entered Recycling 2524 | -9/Recycling | Met a Zionite searching for Scraptown 2525 | -9/Recycling | X0-1V1 sent you into danger 2533 | -9/Recycling | X0-1V1 added 0b10 threat records associated with you (minor) 2549 | -9/Recycling | X0-1V1 vaporized surrounding terrain (radius 15) 2554 | -9/Recycling | Utility slot count permanently improved by X0-1V1 (+1) 2557 | -9/Recycling | Identified exit to Scraptown 2557 | -9/Recycling | X0-1V1 revealed exit location to -9/Scraptown 2564 | -9/Recycling | Core integrity permanently improved by X0-1V1 (+200) 2577 | -9/Recycling | Heat dissipation permanently improved by X0-1V1 (+15; -75 max core) 2582 | -9/Recycling | X0-1V1 sent hostile G-34 Mercenary (x3) 2623 | -9/Recycling | Core integrity restored by X0-1V1 (+56) 2629 | -9/Recycling | X0-1V1 activates XOMVISION 2644 | -9/Recycling | X0-1V1 added 0b10 threat records associated with you (minor) 2654 | -9/Recycling | X0-1V1 vaporized surrounding terrain (radius 19) 2663 | -9/Recycling | X0-1V1 sent hostile B-36 Bruiser (x3) 2852 | -9/Recycling | X0-1V1 sent allied Chaos Knight (x1) 2911 | -9/Recycling | X0-1V1 activates XOMVISION 2952 | -9/Recycling | Scanned before Scraplab entrance 2975 | -9/Recycling | Entered Scraplab 2991 | -9/Recycling | Entered Scraptown 2991 | -9/Scraptown | Accompanied by 1 ally 3207 | -9/Scraptown | Visited Comm Corps 3320 | -9/Scraptown | Visited UFD Registry 3320 | -9/Scraptown | Registered with UFD as "Nukeblaster" 3355 | -9/Scraptown | Visited Botcube Research 3381 | -9/Scraptown | Visited LU-1G1's Boring Crew 3488 | -9/Scraptown | Visited Science Guys 3538 | -9/Scraptown | Visited Infowarlord's Domain 3559 | -9/Scraptown | Visited Sword Containment 3583 | -9/Scraptown | Visited Scrap Suit Storage 3608 | -9/Scraptown | Visited Science Testing Area 3637 | -9/Scraptown | Visited Analyses Database 3677 | -9/Scraptown | Visited Modified Component R&D 3874 | -9/Scraptown | Visited Shadow of the Wyrm 3954 | -9/Scraptown | Scanned Subdweller tech in exchange for log data 3957 | -9/Scraptown | Learned Research emergency access door positions 3959 | -9/Scraptown | Learned Research terminal intel 3960 | -9/Scraptown | Learned location of 1 exit from Lower Caves 3962 | -9/Scraptown | Learned location of Warlord (-5) 3979 | -9/Scraptown | Discovered new exit (range 11) 4251 | -9/Scraptown | Identified Sfc. Transmogrifier 4307 | -9/Scraptown | Visited Cyclists 4323 | -9/Scraptown | Entered Cyclist Reading Room 4427 | -9/Scraptown | Found Botcube 4674 | -9/Scraptown | Found Prototype Slashing Weapon 4674 | -9/Scraptown | Identified Companion Sword 4831 | -9/Scraptown | X0-1V1 brought Wyrm Statue to life 4831 | -9/Scraptown | Attacked by Scraptown defenders 4927 | -9/Scraptown | System corruption reached 10% 4945 | -9/Scraptown | Botcube activated 4949 | -9/Scraptown | Botcube completed mutation into treaded form (unarmed). 4960 | -9/Scraptown | X0-1V1 sent you into danger 4963 | -9/Scraptown | Destroyed by Triborg with Siege Cannon Last Messages --------------- 04961_ The unstable cave ceiling collapses. 04961_ Penetrated by Siege Slug. 04962_ Dropped Vortex Trap. 04962_ Installed Vortex Trap. 04963_ X0-1V1 imagines sitting ducks. K2-O04(j) suddenly freezes. 42-4NK(j) suddenly freezes. 04963_ Triggered Vortex Trap. 04963_ A wave of accelerated entropy washes over the area. 04963_ Hrd. Light Armor Plating destroyed. 04963_ X0-1V1 is interested. 04963_ Destroyed Hrd. Light Armor Plating. 04963_ Mak. Light Armor Plating destroyed. 04963_ Destroyed Mak. Light Armor Plating. 04963_ WE-BKI(E) destroyed. 04963_ Lgt. Deuterium Engine melted. 04963_ AH-ZZY(j) destroyed. 04963_ Penetrated by Siege Slug. 04963_ X0-1V1 snickers! Map ----- +----------------------------------------------------+ | ##?????????????????? | | #### ##########"" """"######?????????????????? | | ##### ###########" |! "######?????????????????? | | #?### ###########" ]!""##?????????????????????? | | ### """"""""###" """##?????????????????????? | | # ### " ""###" """##???????############### | | " """ "###"""""""##???????############### | | """ " ""#######"####???????##""""""""""""# | | " """"""""######## ###???????##"[" #"""""""# | | ##"""#######??# ##?????????## # [ " "# | | "" " ############??#;#########??#####+# ["# | | " ###"""""""""??#; # #####??##""" "# | | """"" ###" ? "?## ! ###?##"= ="# | | ##### ###" "## % ##?##"" """""# | | ##### ###" """ "# # h ##?##" "##### | | ##### ###" """ "## #j %j = #?##X """""# | | ###" " " "# # % #?### [ # | | ###" # Ej % #?##" # | | ##### ###" ## g % ##?##" # | | #### ###" #### j ############## ## | | ##### ######;; ! # =%=##=[################ ## | | # !%= %% =%%! !%* ##?????##"""" "" | | # =% % !%!=! *!= ! ##?????##" | | # !! ==! % % ##?????##" | | !!*[ p ! ##?????##" | | # =!=%!= ! @ ;#??#####" | | # ![############# %% ##??#####" | | # ############# ##??#"""" " | | # ############# ##??#"""" " | | ? # ## #### ##??#"""" " | | ?## """"?? #?# ##??#"""" " | | ?## # "" ""???## ;% TT #####"""" " | | ?## # " "????### TT ###"#"""" " | | ?## # " ???????## g ""#"#"""" " | | ?## # " ??????## """"#"""" " | | ?## # ? ???????# ! ""#######" " | | ### # ?? ???????# != #########" " | | " # # ?????????????#[%%= #########" " | | # ##?????????????# *!%[ " | | # ##?????????????# " | | # ##?????????????# " | | # ################ " | | # ################# " | | # " | | " | | # | | " # | | ### | | #""""#" | | #"??"#" | +----------------------------------------------------+ Best States ------------- Heat Dissipation 92 Energy Generation 25 Energy Capacity 1150 Matter Stores 300 Matter Capacity 300 Sight Range 16 Terrain Scan Density 10 Armor Coverage 2000 Resistance: KI 21 Evasion (%) 40 Recoil Reduction 4 Item Schematics ----------------- Hcp. Storage Unit | -10/Materials | Hacked Med. Reactive Plating | -9/Recycling | Hacked Robot Schematics ------------------ None Fabricated ------------ Nothing Repaired ---------- Nothing Studied --------- None Alien Tech Used ----------------- None Achievements -------------- None Challenges ------------ None Game ------ Seed IonInterdictionWand Manual? 0 Play Time 00:41:02 Cumulative 1657.5 hours Start 2026.06.28 @ 17:37:45 End 2026.06.29 @ 14:43:47 Sessions 3 Manual Loads 0 Difficulty Rogue Special Mode None Game No. 512 Rogue 504 Adventurer 4 Explorer 4 Win Type - Total 63 Types 30/8/3/4/1/4/6/2/3/2 Lore% 97 Gallery% 95 Achievement% 90 Wizard Run 0 Options --------- Layout 2 ASCII 0 Keyboard 0 Movement Numpad Keybinds 0 Fullscreen 2 Font 24/Smallcaps Map View 50x44 Zoom Use 0% Tactical HUD 1 Map Filters NONE Filters NONE Steam 1 RUN: 9024b7a7-a3e9-4192-aa93-5d8e28db05f9